[Event "ChessKid Cup Div-I 2023"]
[Site "Online"]
[Date "2023.05.22"]
[Round "1.1"]
[White "Firouzja, Alireza"]
[Black "Kollars, Dmitrij"]
[Result "1-0"]
[ECO "E01"]
[WhiteElo "2785"]
[BlackElo "2607"]
[Annotator "TA"]
[PlyCount "111"]
[EventDate "2023.05.21"]
[EventType "k.o."]
[EventCountry "NET"]
[SourceTitle "playchess.com"]
[Source "ChessBase"]
[SourceQuality "1"]
[TimeControl "900+3"]

{[%evp 9,111,13,12,9,14,28,24,13,9,16,25,-22,6,-8,0,-82,0,-77,64,41,66,50,44,61,70,54,60,64,59,43,44,40,91,90,94,98,171,173,227,140,143,136,141,142,136,129,135,131,153,154,666,618,1060,533,612,418,412,368,327,0,0,0,-14,-148,-135,-188,-40,-249,-178,-395,-343,-328,-239,-359,-365,-380,-232,-233,-235,-563,-588,-4878,-546,-509,22,22,24,14,14,14,14,17,136,130,256,255,255,232,398,373,364,357,29985,29986]} 1. d4 {[%emt 0:00:03]} Nf6 {[%emt 0:00:07]} 2. c4 {[%emt 0:00:02]} e6 {[%emt 0:00:03]} 3. g3 {[%emt 0:00:00]} d5 {[%emt 0:00:05]} 4. Bg2 {[%emt 0:00:01]} Bb4+ {[%emt 0:00:07]} 5. Nd2 {[%emt 0:00:25]} O-O {[%emt 0:00:06]} (5... dxc4 $2 6. Qa4+ Nc6 7. Bxc6+ bxc6 8. Qxb4 $18) 6. a3 {[%emt 0:01:09] E01: Catalan: Early deviations.} Bxd2+ {[%emt 0:00:23] has lost popularity (6...Be7).} 7. Bxd2 {[%emt 0:00:01]} dxc4 {[%emt 0:00:01]} 8. Nf3 {[%emt 0:00:02] White has an edge.} Nc6 {[%emt 0:00:04] 8...Bd7 injects fresh life into this line.} (8... Bd7 $5 {[%cal Rd7c6]}) 9. e3 {[%emt 0:00:06]} Rb8 {[%emt 0:00:43] [#]} 10. a4 $5 $146 {[%emt 0:01:27][%mdl 8] An interesting novelty.} (10. Qc2 $142) ({Predecessor:} 10. O-O b5 11. b3 cxb3 12. Qxb3 Bb7 13. Rfc1 Ne7 14. Bb4 Re8 15. Ne5 Nd7 16. Bxe7 Rxe7 {½-½ Grischuk,A (2750)-Nakamura,H (2786) Moscow FIDE GP 2017 (8)}) 10... a6 {[%emt 0:01:23]} 11. Qc1 {[%emt 0:01:22]} b5 {[%emt 0:01:06]} 12. b3 {[%emt 0:00:02] [#]} (12. axb5 $11 axb5 13. b3) 12... e5 {[%emt 0:00:43]} 13. bxc4 {[%emt 0:01:12]} (13. Nxe5 Nxe5 14. dxe5 Nd7 15. bxc4 Nxe5 $17) (13. axb5 $11 axb5 14. bxc4 (14. Nxe5 Nxe5 15. dxe5 Nd7 $17)) 13... bxc4 {[%emt 0:01:56]} (13... b4 $1 $17 {[%cal Re5d4]} 14. Nxe5 Nxe5 15. dxe5 Nd7) 14. Qxc4 $14 {[%emt 0:02:12][%cal Od4e5]} Bb7 $1 {[%emt 0:00:08]} 15. O-O {[%emt 0:00:01]} (15. dxe5 $2 Nxe5 16. Nxe5 Bxg2 $19) 15... exd4 {[%emt 0:01:03]} 16. exd4 {[%emt 0:00:04]} Ne4 {[%emt 0:00:05]} 17. Bf4 {[%emt 0:00:09]} Nd6 {[%emt 0:00:06]} 18. Qc5 {[%emt 0:00:06]} (18. Bxd6 {simplifies} cxd6 19. d5 Na5 20. Qd3) 18... Nb4 {[%emt 0:00:31]} 19. Bg5 {[%emt 0:02:04]} f6 {[%emt 0:00:42]} 20. Bd2 {[%emt 0:00:03]} Nd5 {[%emt 0:03:12] [#]} (20... Nd3 $14 21. Qc3 Be4) 21. Ng5 $1 $16 {[%emt 0:00:03]} fxg5 {[%emt 0:00:09]} 22. Bxd5+ {[%emt 0:00:01]} Nf7 {[%emt 0:00:35]} (22... Kh8 $16 23. Bxb7 Nxb7 24. Qxg5 Qxd4) 23. Be6 $36 {[%emt 0:00:41][%cal Oa1b1][%mdl 2048] White is really pushing. This pair of bishops is nice.} h6 {[%emt 0:00:17]} (23... Qd6 $142 24. Qc4 Bc8) 24. Rac1 {[%emt 0:02:22][%cal Od4d5] Threatens to win with d5!} Kh8 {[%emt 0:00:16]} 25. Rfe1 {[%emt 0:00:15][%cal Od4d5] d5! would be deadly.} (25. Qxc7 $6 Qxd4 26. Bxf7 Qxd2 $11) 25... Qf6 {[%emt 0:00:10][%cal Of7e5]} 26. d5 {[%emt 0:00:57]} (26. Qxc7 $2 Ne5 $19) 26... Ne5 {[%emt 0:00:17]} 27. Bc3 {[%emt 0:00:23]} Nf3+ {[%emt 0:00:04]} 28. Kh1 {[%emt 0:00:01]} Qg6 {[%emt 0:00:02]} 29. Re3 {[%emt 0:00:06]} (29. Qxc7 $6 Nxe1 30. Rxe1 Ba8 $14) 29... Qh5 $2 {[%emt 0:00:26]} (29... g4 $16) 30. h3 {[%emt 0:00:40] Active counter play!} (30. Qxc7 $2 Qxh2#) 30... g4 {[%emt 0:00:01][%cal Rh5h3]} 31. h4 {[%emt 0:00:20]} (31. Bxg4 Qxd5 32. Qxc7 Qf7 33. Qxf7 Rxf7 $18) 31... Nxh4 {[%emt 0:00:18] Black is weak on the dark squares} 32. Bxg7+ {[%emt 0:00:02][%mdl 64] Decoy} Kxg7 {[%emt 0:00:05]} 33. Qd4+ {[%emt 0:00:10]} (33. gxh4 Qxh4+ 34. Kg1 Qxf2+ 35. Kh1 Qh4+ 36. Kg1 Qf2+ 37. Kh1 h5 $17) (33. Qxc7+ Kh8 34. Re5 (34. gxh4 Qxh4+ 35. Qh2 Qxh2+ 36. Kxh2 Rbd8 $16) 34... Qg6 $18) 33... Kg6 {[%emt 0:00:16]} 34. Qe4+ {[%emt 0:00:06]} (34. Kg1 $1 $18 {[%cal Oc1c7] White wants to mate with Rxc7!} Nf5 35. Bxf5+ {[%mdl 64] Remove Defender} Qxf5 36. Re5) 34... Nf5+ $11 {[%emt 0:00:28]} 35. Kg1 {[%emt 0:00:03]} Bc8 $1 {[%emt 0:00:13]} 36. Bxc8 {[%emt 0:00:04]} (36. Rc6 $11 {keeps the balance.} Bxe6 37. dxe6) 36... Rbxc8 $17 {[%emt 0:00:04]} (36... Rfxc8 $6 37. d6 cxd6 38. Qe6+ Kg5 39. Rxc8 Rxc8 40. Qxc8 Nxe3 41. fxe3 $11) 37. Rc6+ {[%emt 0:00:01]} (37. Rc4 $17) 37... Kh7 {[%emt 0:00:10]} (37... Kg7 $19 38. Rec3 Kh8 39. Qe5+ Kg8 40. Rxa6 Qf7) 38. Re6 {[%emt 0:00:05] Repels Rfe8} (38. d6 $1 $15) 38... Rf7 {[%emt 0:00:08]} 39. Re5 $2 {[%emt 0:00:04]} (39. Rxa6 Kg8 40. Qe5) 39... Qg6 {[%emt 0:00:04]} 40. Re6 {[%emt 0:00:04]} Qg5 {[%emt 0:00:07]} ({Wrong is} 40... Rf6 $2 41. Rxf6 Qxf6 42. Qxg4 $19) 41. Rc3 {[%emt 0:00:02]} (41. Rxa6 $142 Rcf8 42. Re6) 41... Rcf8 $19 {[%emt 0:00:02]} 42. Rcc6 {[%emt 0:00:01]} Kh8 {[%emt 0:00:06] Hoping for ...h5.} 43. Qe5+ {[%emt 0:00:03]} Qg7 {[%emt 0:00:02]} 44. Rxh6+ $2 {[%emt 0:00:06]} (44. Qxg7+ {was the crucial defense.} Kxg7 45. Rg6+ Kh7 46. Rxg4) 44... Nxh6 {[%emt 0:00:04]} 45. Rxh6+ {[%emt 0:00:00]} Kg8 {[%emt 0:00:01]} 46. Qe6 {[%emt 0:00:00] [#] aiming for Rg6.} Qxh6 {[%emt 0:00:09]} 47. Qxh6 $11 {[%emt 0:00:01]} Rxf2 $19 {[%emt 0:00:01][%mdl 4096] Endgame KQ-KRR} 48. Qg5+ {[%emt 0:00:03]} Kh7 {[%emt 0:00:02]} 49. Qh5+ {[%emt 0:00:01]} (49. Qxg4 $2 {is a self mate.} Rf1+ 50. Kg2 R8f2+ 51. Kh3 Rh1#) 49... Kg7 $1 {[%emt 0:00:03] ( -> ...Rf1+)} 50. Qxg4+ {[%emt 0:00:00]} Kh7 {[%emt 0:00:02]} (50... Kh6 $1 $11 {remains equal.} 51. Qc4 Kg5) 51. Qe4+ {[%emt 0:00:06]} Kg8 {[%emt 0:00:04]} (51... Kg7 $16 {keeps fighting.}) 52. Qg6+ $18 {[%emt 0:00:05]} Kh8 {[%emt 0:00:01]} 53. Qxa6 {[%emt 0:00:07] Qc4 is the strong threat.} R2f5 $2 {[%emt 0:00:12]} (53... R8f7 54. a5 Kg7) 54. Qc4 {[%emt 0:00:02] Black must now prevent a5.} R8f7 {[%emt 0:00:03]} 55. a5 {[%emt 0:00:01]} Rg5 $2 {[%emt 0:00:02]} (55... Rf3 $18 56. Qh4+ Kg8 57. Qg4+ Kh8 58. Qc8+ (58. a6 $2 {gets mated.} Rf1+ 59. Kg2 R7f2+ 60. Kh3 Rh1#) 58... Kh7) 56. Qh4+ {[%emt 0:00:02] A cool game by Firouzja.   Weighted Error Value: White=0.56/Black=0.70} 1-0

[Event "ChessKid Cup Div-I 2023"]
[Site "Online"]
[Date "2023.05.22"]
[Round "1.1"]
[White "Nakamura, Hikaru"]
[Black "Van Foreest, Jorden"]
[Result "0-1"]
[ECO "D02"]
[WhiteElo "2775"]
[BlackElo "2689"]
[Annotator "TA"]
[PlyCount "97"]
[EventDate "2023.05.21"]
[EventType "k.o."]
[EventCountry "NET"]
[SourceTitle "playchess.com"]
[Source "ChessBase"]
[SourceQuality "1"]
[TimeControl "900+3"]

{[%evp 9,97,12,14,8,10,10,11,7,10,10,10,8,11,12,12,10,12,13,16,13,13,5,18,6,10,0,8,4,18,0,0,0,0,-11,14,0,0,-33,-25,-49,-33,-50,-25,-36,-31,-20,0,-91,-99,-93,-100,-95,-74,-102,-26,-211,-140,-125,-121,-125,-114,-113,-129,-180,-176,-486,-481,-433,-476,-629,-358,-375,-372,-376,-364,-124,-31,-864,-864,-855,-854,-838,-826,-29973,-29975,-1803,-1212,-29994,-29995,-29995]} 1. Nf3 {[%emt 0:00:03]} d5 {[%emt 0:00:04]} 2. d4 {[%emt 0:00:05]} Nf6 {[%emt 0:00:02]} 3. Bf4 {[%emt 0:00:12]} c5 {[%emt 0:00:14]} 4. e3 {[%emt 0:00:06]} e6 {[%emt 0:00:11]} 5. Nbd2 {[%emt 0:00:28]} Qb6 {[%emt 0:00:23]} 6. Rb1 {[%emt 0:01:04] D02: 1 d4 d5 2 Nf3 sidelines, including 2...Nf6 3 g3 and 2...Nf6 3 Bf4.} cxd4 {[%emt 0:00:03] 6...Bd6 is the modern continuation.} 7. exd4 {[%emt 0:00:04]} Bd7 {[%emt 0:00:00]} 8. Be2 {[%emt 0:00:20] The position is equal.} Bb5 {[%emt 0:00:08]} 9. O-O {[%emt 0:00:01]} Bxe2 {[%emt 0:00:07]} 10. Qxe2 {[%emt 0:00:00]} Nc6 {[%emt 0:00:06]} 11. c3 {[%emt 0:00:02]} Be7 {[%emt 0:00:10]} 12. Ne1 {[%emt 0:00:43]} O-O {[%emt 0:00:07]} 13. Nd3 {[%emt 0:00:02]} a5 {[%emt 0:01:20]} 14. a4 {[%emt 0:00:07] [#]} Qa6 $146 {[%emt 0:00:01]} ({Predecessor:} 14... Nb8 15. Rfe1 Qa6 16. h3 Nbd7 17. g4 h6 18. Kh1 b5 19. axb5 Qxb5 {½-½ Blittkowsky,R (2152)-Debevec,B (2267) W-ch WS/M/787 email 2020}) 15. Rfe1 {[%emt 0:00:03]} Rfe8 {[%emt 0:00:25]} 16. h3 {[%emt 0:01:10]} Nd7 {[%emt 0:00:06]} 17. Nf1 {[%emt 0:00:13]} Nb6 {[%emt 0:01:26]} 18. Ra1 {[%emt 0:00:22]} Nc4 {[%emt 0:00:12]} 19. b3 {[%emt 0:00:37]} (19. Qg4 {is more complex.} Qb6 20. h4 Bd6 21. Ng3) 19... Nb6 {[%emt 0:00:11]} 20. Ng3 {[%emt 0:00:26]} Nd7 {[%emt 0:00:02]} 21. Red1 {[%emt 0:00:22]} g6 {[%emt 0:00:35]} 22. Be3 {[%emt 0:00:18]} Bd6 {[%emt 0:00:13]} 23. f4 {[%emt 0:00:06]} Nf6 {[%emt 0:00:04]} 24. Bf2 {[%emt 0:00:32]} Rac8 {[%emt 0:00:08]} 25. Rac1 {[%emt 0:00:35]} Ne7 {[%emt 0:00:01]} 26. c4 {[%emt 0:00:35]} dxc4 {[%emt 0:01:04]} 27. bxc4 {[%emt 0:00:00]} Nf5 {[%emt 0:00:01]} (27... Rxc4 $5 28. Nc5 Rxc1 29. Nxa6 Rxd1+ 30. Qxd1 bxa6 $11) 28. Nf1 {[%emt 0:00:32]} (28. Ne5 $11) 28... Rxc4 $17 {[%emt 0:01:04]} 29. Nc5 {[%emt 0:00:09] [#]} Rxc5 {[%emt 0:00:05][%mdl 64] Discovered Attack} 30. Qxa6 {[%emt 0:00:02]} Rxc1 {[%emt 0:00:00]} (30... bxa6 31. dxc5 Bxf4 32. Rc4 $14) 31. Qd3 {[%emt 0:00:03]} Rec8 {[%emt 0:00:28]} (31... Bxf4 $6 32. Rxc1 Bxc1 33. Qb1 $11) ({Black should try} 31... Rxd1 $17 32. Qxd1 Bxf4) 32. g3 $2 {[%emt 0:00:50]} (32. Rxc1 $11 Rxc1 33. Qd2) 32... R1c3 {[%emt 0:00:08] White is weak on the light squares} 33. Qb5 {[%emt 0:00:10]} h5 {[%emt 0:00:30]} 34. Qxb7 {[%emt 0:00:41]} Nd5 {[%emt 0:00:05][%cal Oh5h4,Bf6d5,Bd5f4,Bf4h3,Bh3f2][%mdl 32] And now ...h4! would win.} 35. Be1 {[%emt 0:00:36]} Rc2 {[%emt 0:00:37]} 36. Bxa5 {[%emt 0:00:29] [#]} h4 $1 {[%emt 0:00:03]} 37. Be1 {[%emt 0:00:14]} (37. g4 Ng3 38. f5 gxf5 39. Bd2) 37... hxg3 $19 {[%emt 0:00:07]} 38. Nxg3 {[%emt 0:00:00]} Nh4 {[%emt 0:00:38] A dynamic duo of knights.} (38... Nxf4 39. Nxf5 gxf5 40. a5 $11) 39. Bf2 {[%emt 0:00:29]} Nxf4 {[%emt 0:00:03]} 40. Ne4 {[%emt 0:00:10]} Nf3+ {[%emt 0:00:58]} (40... Nxh3+ $2 41. Kf1 Nf5 42. Rd3 Nxf2 43. Nxf2) 41. Kh1 {[%emt 0:00:20]} Nxh3 {[%emt 0:00:23]} 42. Rf1 {[%emt 0:00:02]} ({But not} 42. Nxd6 Nxf2+ 43. Kg2 R8c3 44. Qxf7+ Kh8 45. Qf6+ Kh7 46. Qe7+ (46. Qf7+ $2 Kh6 $19) 46... Kh6 $19) (42. Bg1 $2 Nhxg1 $19) ({White should play} 42. Qxc8+ $19 Rxc8 43. Kg2) 42... Kg7 $40 {[%emt 0:02:23][%mdl 128] Black is up to no good. Some like it hot. Black has more active pieces.} (42... R8c3 $17 {[%cal Og8g7] Strongly threatening ...Kg7!} 43. d5 (43. Nxd6 {gets mated.} Nxf2+ 44. Rxf2 Rxf2 45. Qxf7+ Kh8 46. Qe8+ Kh7 47. Qf7+ Kh6 48. Qf8+ Kh5) 43... Nxf2+ 44. Nxf2 exd5 45. Qxd5 Rd2) 43. Nxd6 $4 {[%emt 0:00:36][%mdl 8192]} (43. Kg2 $15 Rb8 44. Qd7) 43... Nxf2+ {[%emt 0:00:02]} 44. Kg2 {[%emt 0:02:14]} Ne4+ {[%emt 0:00:05][%mdl 64] Discovered Attack} 45. Kxf3 {[%emt 0:00:05]} Nxd6 {[%emt 0:00:01]} 46. Qb1 {[%emt 0:00:14]} R8c3+ {[%emt 0:00:03]} 47. Kf4 {[%emt 0:00:08]} f6 {[%emt 0:00:06] ( -> ...g5+)} 48. Rg1 {[%emt 0:00:17]} Rf2+ {[%emt 0:00:15]} 49. Kg4 {[%emt 0:00:00] Artfully played by Van Foreest.   Weighted Error Value: White=0.61/Black=0.37} 0-1

[Event "ChessKid Cup Div-I 2023"]
[Site "Online"]
[Date "2023.05.22"]
[Round "1.1"]
[White "Caruana, Fabiano"]
[Black "Shimanov, Aleksandr"]
[Result "1-0"]
[ECO "C11"]
[WhiteElo "2764"]
[BlackElo "2581"]
[Annotator "TA"]
[PlyCount "69"]
[EventDate "2023.05.21"]
[EventType "k.o."]
[EventCountry "NET"]
[SourceTitle "playchess.com"]
[Source "ChessBase"]
[SourceQuality "1"]
[TimeControl "900+3"]

{[%evp 9,69,32,31,29,34,26,26,-40,-41,-26,-27,-18,-43,-121,-64,-102,-85,-81,-1,-15,0,24,19,22,18,0,33,57,106,75,75,8,450,0,413,405,827,794,691,760,29968,29969,6270,6207,29980,556,5397,5322,29992,29986,29991,29992,29992,29993,29993,29994,29996,29997,29997,29997,29998,29999]} 1. e4 {[%emt 0:00:05]} e6 {[%emt 0:00:08]} 2. d4 {[%emt 0:00:03]} d5 {[%emt 0:00:01]} 3. Nc3 {[%emt 0:00:01]} a6 {[%emt 0:00:04]} 4. Nf3 {[%emt 0:00:27]} Nf6 {[%emt 0:00:02]} 5. e5 {[%emt 0:00:17]} Nfd7 {[%emt 0:00:02]} 6. Ne2 {[%emt 0:00:01] C11: French: Classical System: 4 e5 and 4 Bg5 dxe4.} c5 {[%emt 0:00:01]} 7. c3 {[%emt 0:00:01]} Nc6 {[%emt 0:00:01]} 8. Nf4 {[%emt 0:00:15]} (8. g3 $11) 8... cxd4 $15 {[%emt 0:00:05]} 9. cxd4 {[%emt 0:00:01] [#]} g5 $146 {[%emt 0:00:01]} ({Predecessor:} 9... Bb4+ 10. Bd2 Qa5 11. h4 Bxd2+ 12. Qxd2 Qxd2+ 13. Kxd2 Nb6 14. Rc1 Bd7 15. Rh3 Ne7 {½-½ Noritsyn,N (2518)-Harvey,M (2419) PRO League Stage rapid 2020 (4)}) 10. Ne2 $1 {[%emt 0:01:02]} g4 {[%emt 0:00:02]} 11. Nfg1 {[%emt 0:00:05]} (11. Nd2 $1 $15) 11... f6 {[%emt 0:00:37]} (11... Qb6 $17 12. a3 f6 13. exf6 Nxf6) 12. exf6 {[%emt 0:02:08]} Qxf6 {[%emt 0:00:02]} 13. a3 {[%emt 0:00:43]} Nb6 {[%emt 0:00:36]} (13... Bg7 $17 {[%cal Oe6e5] ...e5! is the strong threat.} 14. f4 Nxd4 15. Nxd4 Qxd4 16. Qxg4 Qe4+ 17. Be2 O-O) 14. h3 $1 $11 {[%emt 0:00:12]} e5 {[%emt 0:00:50]} 15. dxe5 {[%emt 0:00:52]} Qxe5 {[%emt 0:02:27]} 16. hxg4 {[%emt 0:00:19]} Bxg4 {[%emt 0:00:16] Hoping for ...0-0-0.} 17. Nf3 {[%emt 0:00:02]} (17. Qb3 {feels hotter.} Nd4 18. Qc3 Nc6 19. Bf4) 17... Bxf3 {[%emt 0:00:29]} 18. gxf3 {[%emt 0:00:00] Black must now prevent Qb3.} Bc5 {[%emt 0:01:30]} (18... Bg7 $14 {was preferrable.}) 19. Bh3 {[%emt 0:01:39] aiming for Bf4.} Nd4 {[%emt 0:03:06]} 20. Bf4 {[%emt 0:01:30] A strong pair of Bishops.} ({White should try} 20. Kf1 $16) 20... Nxf3+ {[%emt 0:01:39] White stays focused until the end.} 21. Kf1 {[%emt 0:00:03]} Qf6 {[%emt 0:00:02][%mdl 8192]} (21... Qxb2 $2 22. Rc1 Qxa3 23. Rc3 $18) (21... Qe4 $1 $11 {and Black has nothing to worry.} 22. b4 Rg8 23. bxc5 Nc4 {[%mdl 64] Decoy}) 22. Rc1 $18 {[%emt 0:01:43]} Bd6 {[%emt 0:01:11]} (22... Bxf2 $142 23. Kxf2 Ne5) 23. Bxd6 {[%emt 0:00:44][%mdl 64] [#] Deflection} Qxd6 {[%emt 0:00:00]} 24. Nd4 {[%emt 0:00:19]} Nxd4 {[%emt 0:02:43]} 25. Qxd4 {[%emt 0:00:04]} Kf7 {[%emt 0:00:02]} 26. Rc3 {[%emt 0:00:32] White threatens Rf3+ and mate.} Raf8 {[%emt 0:00:05]} 27. Bg4 {[%emt 0:00:20]} (27. Rf3+ $142 Ke7 28. Re3+ Kd8 29. Re6 Qxe6 30. Bxe6 Nc4 31. Bxd5 h6 32. Bg8+ {[%mdl 64] Discovered Attack} Kc8 33. Qc5+ Kd7 34. Qxf8) 27... Nd7 {[%emt 0:00:17]} 28. Bxd7 {[%emt 0:00:49][%cal Oc3e3] [#] Re3! would kill now.} Qxd7 {[%emt 0:00:00]} 29. Qf4+ {[%emt 0:00:24] Black is weak on the dark squares. White mates.} Ke8 {[%emt 0:00:07]} 30. Qe5+ {[%emt 0:00:03]} Kd8 {[%emt 0:00:02]} 31. Qb8+ {[%emt 0:00:02]} Ke7 {[%emt 0:00:01]} 32. Re3+ {[%emt 0:00:02]} Kf6 {[%emt 0:00:06]} 33. Qe5+ {[%emt 0:00:11]} Kf7 {[%emt 0:00:02]} 34. Qf4+ {[%emt 0:00:02]} Kg7 {[%emt 0:00:03]} 35. Rg3+ {[%emt 0:00:04] An entertaining game by Caruana.   Weighted Error Value: White=0.35/Black=1.03} 1-0

[Event "ChessKid Cup Div-I 2023"]
[Site "Online"]
[Date "2023.05.22"]
[Round "1.1"]
[White "Abdusattorov, Nodirbek"]
[Black "Moussard, Jules"]
[Result "1-0"]
[ECO "B53"]
[WhiteElo "2731"]
[BlackElo "2644"]
[Annotator "TA"]
[PlyCount "75"]
[EventDate "2023.05.21"]
[EventType "k.o."]
[EventCountry "NET"]
[SourceTitle "playchess.com"]
[Source "ChessBase"]
[SourceQuality "1"]
[TimeControl "900+3"]

{[%evp 9,75,0,11,15,25,9,25,0,0,0,7,0,0,0,0,-4,0,0,25,13,30,30,49,26,20,20,18,11,12,20,82,56,94,95,87,66,90,85,90,81,86,83,77,77,78,76,83,76,137,125,161,170,256,243,289,283,656,351,651,633,850,839,728,618,29990,29991,29997,29995]} 1. e4 {[%emt 0:00:05]} c5 {[%emt 0:00:05]} 2. Nf3 {[%emt 0:00:01]} d6 {[%emt 0:00:01]} 3. d4 {[%emt 0:00:03]} cxd4 {[%emt 0:00:01]} 4. Qxd4 {[%emt 0:00:01]} Nf6 {[%emt 0:00:20]} 5. Be2 {[%emt 0:00:02]} Nc6 {[%emt 0:00:35]} 6. Qe3 {[%emt 0:00:02] B53: Sicilian: 2...d6: Lines with Qxd4.} g6 {[%emt 0:00:08]} 7. O-O {[%emt 0:00:02]} Bg7 {[%emt 0:00:01]} 8. h3 {[%emt 0:00:02] White has an edge.} O-O {[%emt 0:00:03]} 9. Rd1 {[%emt 0:00:01]} Nd7 {[%emt 0:01:39]} 10. Nc3 {[%emt 0:00:30]} b6 {[%emt 0:00:05]} 11. Qf4 $5 {[%emt 0:01:15][%mdl 4] Exploring less charted territory.} Nde5 {[%emt 0:01:18]} 12. Nxe5 {[%emt 0:00:15]} Bxe5 {[%emt 0:01:48]} 13. Qh4 {[%emt 0:00:08] [#]} Nd4 $146 {[%emt 0:00:43]} ({Predecessor:} 13... Bf6 14. Bg5 Bxg5 15. Qxg5 Be6 16. f4 f6 17. Qg3 Qc8 18. Nd5 Kh8 19. c3 Qb7 {½-½ Ragger,M (2643)-Saatdjian,T (2267) FRA-chT Top 16 GpA 2022 (6.2)}) 14. Bd3 {[%emt 0:00:52]} (14. Bc4 {is more complex.} e6 15. Bg5 Qc7 16. Bb3) 14... Bf6 {[%emt 0:00:52]} 15. Qg3 {[%emt 0:02:26]} Bb7 {[%emt 0:01:32]} 16. Bh6 {[%emt 0:00:48]} Re8 {[%emt 0:00:35]} 17. Nd5 {[%emt 0:00:14]} Bxd5 {[%emt 0:00:19]} 18. exd5 {[%emt 0:00:03] c3 would be deadly.} Qc8 {[%emt 0:00:02]} 19. Qf4 {[%emt 0:01:50]} (19. c3 $5 Nf5 $8 20. Bxf5 Qxf5 21. Qg4 $11) 19... Be5 {[%emt 0:01:12]} (19... Nf5 $11 {remains equal.}) 20. Qe4 $16 {[%emt 0:00:18]} e6 {[%emt 0:01:41]} 21. c3 {[%emt 0:00:37]} Nf5 {[%emt 0:00:02]} 22. Bd2 {[%emt 0:00:04]} a6 {[%emt 0:00:04]} 23. a4 {[%emt 0:00:15]} Bg7 {[%emt 0:00:19]} 24. dxe6 {[%emt 0:00:12]} fxe6 {[%emt 0:00:03]} 25. Qb4 {[%emt 0:00:27]} Qc6 {[%emt 0:00:21]} 26. Bxf5 {[%emt 0:01:05]} gxf5 {[%emt 0:00:00]} 27. Be3 {[%emt 0:00:01][%csl LRb6,LRd6]} d5 {[%emt 0:00:06]} 28. Bxb6 {[%emt 0:00:26]} Bf8 {[%emt 0:00:28] [#]} ({Black should try} 28... a5 29. Qb5 (29. Bxa5 Reb8 $15) 29... Qxb5 30. axb5 Rab8) 29. Qb3 $1 {[%emt 0:00:19]} Rab8 {[%emt 0:00:19]} 30. a5 {[%emt 0:00:02][%cal Ba4a5,Ba5b6][%mdl 32]} Bc5 {[%emt 0:00:01] [#]} (30... Re7 {keeps fighting.} 31. Qc2 Qb5) 31. c4 $1 $18 {[%emt 0:00:06]} Bxb6 {[%emt 0:00:02]} 32. Qg3+ {[%emt 0:00:03]} ({Don't do} 32. axb6 $6 Rb7 33. cxd5 Qxb6 34. Qg3+ Rg7 $18) 32... Kh8 $2 {[%emt 0:00:27]} (32... Kf8) 33. axb6 {[%emt 0:00:26] Threatens to win with Qe5+.} Rb7 $2 {[%emt 0:00:50] Black is weak on the dark squares} (33... e5 34. cxd5 Qxb6) 34. Qe5+ {[%emt 0:00:34]} Rg7 {[%emt 0:00:04]} 35. Rxa6 {[%emt 0:01:13][%cal Ba1a6,Ba6a7,Ba7g7][%mdl 32] Black must now prevent Ra7.} dxc4 {[%emt 0:00:14]} 36. g3 {[%emt 0:00:03] White threatens Ra7 and mate. Active counter play!} Reg8 {[%emt 0:00:16]} 37. Ra7 {[%emt 0:00:13]} c3 {[%emt 0:00:08]} 38. Rxg7 {[%emt 0:00:04] Weighted Error Value: White=0.20 (precise) /Black=0.64} 1-0